bitfinex/quotes_ETHUSD_20240907
["timestamp","ask_amount","ask_price","bid_price","bid_amount"]
[1725740418989,4.29460013,2291.3,2291.2,8.72885]
[1725740421185,4.29460013,2291.3,2290.7,3.0]
[1725740421186,2.4589,2291.2,2290.8,4.36511]
[1725740421360,3.74460013,2290.9,2290.8,4.36511]
[1725740421821,4.29460013,2290.9,2290.8,4.36511]
[1725740423192,4.29460013,2290.9,2290.8,8.73039]
[1725740423763,5.2522993,2290.9,2290.5,4.36583]
[1725740423962,3.74460013,2290.6,2290.5,4.36583]
[1725740424279,4.29460013,2290.6,2290.5,4.36583]
[1725740424668,4.29460013,2290.6,2290.5,8.73168]
[1725740424875,3.74460013,2290.6,2290.5,8.73168]
[1725740425763,3.74460013,2290.8,2290.7,4.36542]
[1725740426063,4.29460013,2290.8,2290.7,8.73089]
[1725740431004,3.74460013,2290.8,2290.7,8.73089]
[1725740431212,3.74460013,2290.8,2290.7,4.36542]
[1725740431213,6.57796014,2290.8,2290.7,4.36542]
[1725740431497,8.31374619,2290.8,2290.7,4.36542]
[1725740431703,5.85484619,2290.8,2290.7,8.73089]
[1725740431904,4.96487697,2290.8,2290.7,8.73089]
[1725740432599,4.36369675,2290.8,2290.7,8.73089]
[1725740432762,4.96487697,2290.8,2290.7,8.73089]
[1725740433367,4.96487697,2290.8,2290.7,4.36542]
[1725740433561,6.10443108,2290.8,2290.7,4.36542]
[1725740434812,12.92864108,2290.8,2290.4,4.4822388]
[1725740434983,3.74460013,2290.5,2290.4,4.4822388]
[1725740435330,3.81092505,2290.5,2290.4,4.4822388]
[1725740435471,4.36092505,2290.5,2290.4,4.4822388]
[1725740436791,0.61632492,2290.5,2290.4,8.8482788]
[1725740440368,0.06632492,2290.5,2290.4,8.8482788]
[1725740440612,0.60118022,2290.7,2290.6,8.73132]
[1725740440763,0.66662151,2290.7,2290.6,8.73132]
[1725740444832,0.66662151,2290.7,2290.6,4.36566]
[1725740445033,7.6633495,2290.7,2290.4,0.1162988]
[1725740445219,3.74460013,2290.5,2290.4,0.1162988]
[1725740445419,4.3611615,2290.5,2290.4,0.1162988]
[1725740445941,4.3611615,2290.5,2290.4,4.4823388]
[1725740446737,4.3611615,2290.5,2290.4,0.1162988]
[1725740447046,5.20206847,2290.5,2290.4,0.1162988]
[1725740448239,5.80324869,2290.5,2290.4,0.1162988]
[1725740459508,12.55489869,2290.5,2290.4,0.1162988]
[1725740459713,5.80324869,2290.5,2290.4,0.1162988]
[1725740460019,3.62084904,2290.5,2290.4,0.1162988]
[1725740462025,3.62084904,2290.5,2290.4,4.4823388]
[1725740462361,2.77994207,2290.5,2290.4,4.4823388]
[1725740464131,0.06656137,2290.5,2290.4,15.79203874]
[1725740464525,1.56220048,2290.9,2290.8,4.36528]
[1725740465672,1.62230822,2290.9,2290.8,4.36528]
[1725740466167,4.35781531,2290.9,2290.8,4.36528]
[1725740466525,4.9206622,2290.9,2290.8,4.36528]
[1725740473891,5.50526803,2290.9,2290.7,4.36528]
[1725740474176,1.69745272,2290.8,2290.7,4.36528]
[1725740474384,1.69745272,2290.8,2290.6,4.36564]
[1725740474547,1.75765963,2290.8,2290.7,4.36547]
[1725740474748,5.5053672,2290.8,2290.7,4.36547]
[1725740475880,4.94252031,2290.8,2290.7,4.36547]
[1725740476289,4.94252031,2290.8,2290.6,4.36564]
[1725740476445,2.2585,2290.7,2290.4,0.1162988]
[1725740476641,3.74770757,2290.5,2290.4,0.1162988]
[1725740476849,4.29770757,2290.5,2290.4,0.1162988]
[1725740477047,4.35775319,2290.5,2290.4,0.1162988]
[1725740477970,4.35775319,2290.5,2290.4,4.4822988]
[1725740478781,0.06004562,2290.5,2290.4,16.51993949]
[1725740479193,3.74770757,2291.0,2290.9,4.36509]
[1725740479489,4.3323134,2291.0,2290.9,4.36509]
[1725740482312,4.39033061,2291.0,2290.9,4.36509]
[1725740483015,4.94033061,2291.0,2290.9,4.36509]
[1725740483707,4.35572478,2291.0,2290.9,4.36509]
[1725740485431,4.91858495,2291.0,2290.9,4.36509]
[1725740486697,4.91858495,2291.0,2290.8,4.36528]
[1725740486899,5.42752712,2291.0,2290.8,4.36528]
[1725740487778,5.42752712,2291.0,2290.8,8.73046]
[1725740488203,5.42752712,2291.0,2290.8,8.73037]
[1725740488608,5.42752712,2291.0,2290.8,4.36518]
[1725740489090,5.42752712,2291.0,2290.8,8.73037]
[1725740489614,5.42752712,2291.0,2290.8,4.36518]
[1725740489821,5.42752712,2291.0,2290.8,8.73037]
[1725740489990,1.56159757,2290.9,2290.8,8.73037]
[1725740490187,1.88573928,2290.9,2290.6,4.36553]
[1725740490375,1.56159757,2290.6,2290.5,4.36584]
[1725740490777,2.17053653,2290.6,2290.5,4.36584]
[1725740491192,2.17053653,2290.6,2290.4,8.8481788]
[1725740491415,0.55,2290.5,2290.4,4.4822288]
[1725740491837,0.60878526,2290.5,2290.4,4.4822288]
[1725740492715,0.60878526,2290.5,2290.4,8.8481788]
[1725740497991,0.60878526,2290.5,2290.4,4.4822288]
[1725740498192,3.39554141,2290.5,2290.4,4.4822288]
[1725740498416,1.04454141,2290.5,2290.4,4.4822288]
[1725740500572,0.60878526,2290.5,2290.4,8.8482688]
[1725740505151,1.17164543,2290.5,2290.4,4.4822288]
[1725740510398,0.62164543,2290.5,2290.4,4.4822288]
[1725740511568,0.62164543,2290.5,2290.4,0.1162988]
[1725740513460,1.20625126,2290.5,2290.4,0.1162988]
[1725740513660,9.24239812,2290.5,2290.4,0.1162988]
[1725740513860,6.77386,2290.0,2289.5,4.36774]
[1725740514091,1.56195737,2289.6,2289.4,4.36783]
[1725740514313,1.56195737,2289.5,2289.4,4.36783]
[1725740514476,1.6163386,2289.5,2289.4,4.36783]
[1725740515100,0.05438123,2289.5,2289.4,9.69672528]
[1725740515395,0.05438123,2289.5,2289.4,16.53627528]
[1725740515595,1.56195737,2289.5,2289.2,4.36821]
[1725740515795,1.56195737,2289.5,2289.3,3.08734575]
[1725740515985,0.04945686,2289.4,2289.3,11.82362575]
[1725740516586,1.56195737,2289.5,2289.4,8.7359]
[1725740516998,1.61153403,2289.5,2289.4,8.7359]
[1725740517671,0.04957666,2289.5,2289.4,8.7359]
[1725740518093,1.56195737,2289.7,2289.6,4.36757]
[1725740519577,1.56195737,2289.7,2289.6,8.73514]
[1725740520019,1.61184172,2289.7,2289.6,8.73514]
[1725740523630,1.56195737,2289.7,2289.6,8.73514]
[1725740524226,1.61185145,2289.7,2289.6,8.73514]
[1725740525417,2.17471162,2289.7,2289.6,4.36757]
[1725740525724,2.68039336,2289.7,2289.6,4.36757]
[1725740527886,3.23039336,2289.7,2289.5,4.36775]
[1725740528195,2.68039336,2289.7,2289.5,4.36775]
[1725740528402,2.99876017,2289.6,2289.4,4.36786]
[1725740528611,1.56195737,2289.5,2289.4,4.36786]
[1725740528810,1.61073227,2289.5,2289.4,4.36786]
[1725740529898,1.61073227,2289.5,2289.4,8.73581]
[1725740530339,1.87865969,2289.5,2289.4,8.73581]
[1725740531148,0.0487749,2289.5,2289.4,8.73581]
[1725740531302,1.61073227,2289.5,2289.4,8.73581]
[1725740534042,1.61073227,2289.5,2289.4,8.53581]
[1725740534907,0.0487749,2289.5,2289.4,15.26566]
[1725740535162,1.29e-06,2289.5,2289.4,28.56351737]
[1725740535451,7.43,2290.1,2290.0,8.73362]
[1725740535634,1.56195737,2290.2,2290.1,8.73324]
[1725740535937,2.1465632,2290.2,2290.1,8.17037983]
[1725740536160,2.1465632,2290.2,2290.1,3.80375983]
[1725740536334,2.66251836,2290.2,2290.1,3.80375983]
[1725740536536,3.7056702,2290.2,2290.0,4.36671]
[1725740536741,3.7056702,2290.2,2289.4,10.02421174]
[1725740536742,1.10056099,2290.1,2289.8,8.73413]
[1725740536924,1.56195737,2289.9,2289.8,4.36705]
[1725740539616,1.56195737,2289.9,2289.8,8.73424]
[1725740539811,1.56195737,2289.9,2289.7,4.36736]
[1725740540040,1.94505311,2289.8,2289.7,4.36736]
[1725740540245,1.56195737,2289.8,2289.7,4.36736]
[1725740540823,2.3242,2289.7,2289.6,4.36756]
[1725740541241,2.8742,2289.7,2289.6,4.36756]
[1725740542620,2.8742,2289.7,2289.5,4.36775]
[1725740542821,1.56195737,2289.6,2289.5,4.36775]
[1725740543029,2.00557311,2289.6,2289.5,4.36775]
[1725740544364,2.00557311,2289.6,2289.4,8.73565]
[1725740544672,2.00557311,2289.6,2289.5,4.36776]
[1725740550239,1.56195737,2289.6,2289.5,4.36776]
[1725740567498,2.11195737,2289.6,2289.5,4.36776]
[1725740573501,4.30485162,2290.0,2289.7,4.36738]
[1725740573717,11.70822015,2290.2,2290.0,4.36681]
[1725740573718,8.99195737,2290.2,2290.0,4.36681]
[1725740573861,1.56195737,2290.2,2290.1,4.36662]
[1725740574060,2.90882343,2290.2,2290.0,4.36681]
[1725740574267,3.54286099,2290.1,2289.8,4.36703]
[1725740574568,3.54286099,2290.1,2289.8,4.36719]
[1725740574569,1.56195737,2289.9,2289.8,4.36719]
[1725740574995,2.11195737,2289.9,2289.8,4.36719]
[1725740581667,2.62791253,2289.9,2289.8,4.36719]
[1725740581897,3.19339437,2289.9,2289.8,4.36719]
[1725740584670,5.51619437,2289.9,2289.7,8.73456]
[1725740586008,1.06595516,2289.8,2289.6,4.36755]
[1725740586319,1.06595516,2289.8,2289.5,4.36762]
[1725740586320,1.56195737,2289.7,2289.5,4.36762]
[1725740586640,0.55,2289.6,2289.5,4.36762]
[1725740591923,0.72605712,2289.6,2289.5,4.36762]
[1725740602849,0.55,2289.6,2289.5,4.36762]
[1725740603050,1.56195737,2289.6,2289.5,4.36762]
[1725740603256,2.11195737,2289.6,2289.5,4.36762]
[1725740606161,6.65077,2289.5,2289.0,4.36861]
[1725740606371,6.65077,2289.5,2288.6,4.36947]
[1725740606372,1.56195737,2289.1,2288.6,8.73873]
[1725740606562,1.56195737,2288.7,2288.6,4.36936]
[1725740607295,2.66251836,2288.7,2288.3,4.36994]
[1725740607457,2.2829,2288.8,2288.3,4.36994]
[1725740607458,1.56195737,2288.5,2288.3,4.36994]
[1725740607660,2.07791253,2288.5,2288.3,4.36994]
[1725740607859,2.07791253,2288.5,2288.3,8.73989]
[1725740608403,1.56195737,2288.5,2288.4,4.36986]
[1725740612231,1.56195737,2288.5,2288.4,8.73972]
[1725740616673,4.36883,2289.0,2288.7,4.36929]
[1725740616674,0.51595516,2289.0,2288.7,4.36929]
[1725740616843,1.56195737,2288.8,2288.7,4.36929]
[1725740617030,2.62791253,2288.8,2288.7,4.36929]
[1725740617653,2.62791253,2288.8,2288.6,4.36945]
[1725740617847,0.55,2288.7,2288.6,4.36945]
[1725740618066,1.23493955,2288.7,2288.6,4.36945]
[1725740618371,1.75089471,2288.7,2288.6,4.36945]
[1725740620168,1.06595516,2288.7,2288.6,4.36945]
[1725740620565,0.58460583,2289.0,2288.6,6.81765]
[1725740620740,7.43,2289.1,2288.9,4.36891]
[1725740620939,1.56195737,2289.0,2288.9,4.36891]
[1725740621150,3.08716437,2289.0,2288.9,4.36891]
[1725740621951,2.62791253,2289.0,2288.9,8.73782]
[1725740622158,1.56195737,2289.0,2288.9,8.73782]
[1725740627799,1.56195737,2289.0,2288.9,4.36891]
[1725740627800,2.66251836,2289.0,2288.9,4.36891]
[1725740629790,2.07791253,2289.0,2288.9,4.36891]
[1725740639862,1.56195737,2289.0,2288.9,8.73782]
[1725740645910,1.56195737,2289.0,2288.9,4.36891]
[1725740646582,2.385,2288.9,2288.6,4.36934]
[1725740646787,1.56195737,2288.7,2288.6,4.36934]
[1725740646987,2.07791253,2288.7,2288.5,4.36964]
[1725740647199,2.11195737,2288.6,2288.5,4.36964]
[1725740649752,1.56195737,2288.6,2288.5,4.36964]
[1725740652654,1.74056588,2288.6,2288.5,4.36964]
[1725740654274,1.56195737,2288.6,2288.5,4.36964]
[1725740660534,2.07791253,2288.6,2288.5,4.36964]
[1725740661849,2.07791253,2288.6,2288.4,4.36975]
[1725740662078,2.07791253,2288.6,2288.1,0.1162988]
[1725740662079,1.10056099,2288.5,2288.1,0.1162988]
[1725740662247,3.98995737,2288.3,2288.1,0.1162988]
[1725740662575,1.65056099,2288.2,2288.1,0.1162988]
[1725740662783,1.06595516,2288.2,2288.1,0.1162988]
[1725740662939,2.00853541,2288.2,2288.1,0.1162988]
[1725740663251,3.67186044,2288.2,2288.1,0.1162988]
[1725740665182,3.84514511,2288.2,2288.1,0.1162988]
[1725740667581,4.42975094,2288.2,2288.1,0.1162988]
[1725740669047,2.0,2286.1,2285.8,0.91651995]
[1725740669352,2.0,2286.1,2285.1,3.206687]
[1725740669353,4.37505,2285.7,2284.8,4.37662]
[1725740669583,3.19368481,2286.1,2285.2,4.37596]
[1725740669584,1.82487042,2285.5,2285.2,4.37596]
[1725740669895,1.82487042,2285.5,2285.4,8.7512]
[1725740670060,1.36865281,2286.5,2285.8,4.3747]
[1725740670247,0.90996934,2286.3,2285.8,4.37465]
[1725740670451,0.90996934,2286.2,2285.8,4.37465]
[1725740670648,0.90996934,2286.3,2285.8,4.37465]
[1725740670851,0.40939105,2286.1,2285.8,4.37465]
[1725740671050,0.40939048,2286.0,2285.8,4.37465]
[1725740671275,0.90996934,2286.3,2285.8,4.37465]
[1725740671515,1.31935336,2286.2,2285.8,4.37465]
[1725740671792,1.9743203,2286.1,2285.4,4.37545]
[1725740671950,0.40938402,2286.0,2285.6,4.37518]
[1725740672145,0.90996934,2286.1,2285.6,4.37518]
[1725740672399,0.90996934,2286.2,2285.2,2.3665]
[1725740672690,0.90996934,2286.5,2285.9,4.37452]
[1725740672894,0.40940369,2286.4,2285.9,4.37452]
[1725740673050,0.40940369,2286.3,2285.9,4.37452]
[1725740673249,1.40160269,2286.5,2285.9,4.37452]
[1725740673498,1.40160269,2286.5,2285.7,4.37491]
[1725740673499,0.90103409,2286.4,2285.7,4.37491]
[1725740673653,0.40939819,2286.3,2285.7,4.37491]
[1725740673852,4.86536335,2286.4,2285.7,4.37491]
[1725740674049,5.33192995,2286.2,2285.2,2.3665]
[1725740674373,0.40935624,2286.1,2285.5,8.75057]
[1725740674561,10.61596929,2286.2,2285.5,4.37528]
[1725740674562,5.33192995,2286.2,2285.5,4.37528]
[1725740674760,0.4093435,2286.1,2285.5,4.37527]
[1725740674984,4.37394,2286.3,2285.5,4.37527]
[1725740675186,0.55,2286.2,2285.6,4.3751]
[1725740675546,4.37394,2286.3,2285.7,4.37499]
[1725740675752,8.74715,2286.5,2285.8,4.37466]
[1725740675951,4.78305066,2286.4,2285.8,4.37466]
[1725740676197,4.3737,2286.4,2285.8,4.37466]
[1725740676387,4.3737,2286.4,2285.7,4.37502]
[1725740676388,0.91565907,2286.3,2285.7,4.37502]
[1725740676573,0.91565907,2286.3,2285.8,4.37483]
[1725740677065,5.28955907,2286.3,2285.7,4.37502]
[1725740677270,5.8235633,2286.2,2285.5,4.37529]
[1725740678587,10.1977833,2286.2,2285.5,4.37529]
[1725740678786,10.1977833,2286.2,2285.5,8.75057]
[1725740679174,14.5719733,2286.2,2285.5,4.37528]
[1725740679361,4.37426,2286.1,2285.5,4.37528]
[1725740679564,1.45720133,2286.1,2285.5,8.75057]
[1725740679863,1.45720133,2286.1,2285.5,4.37528]
[1725740680066,5.83150133,2286.1,2285.5,4.37528]
[1725740680978,5.83150133,2286.1,2285.5,8.75058]
[1725740681401,1.45720133,2286.1,2285.6,4.37515]
[1725740681771,4.3736,2286.5,2285.9,4.37452]
[1725740682083,4.3736,2286.5,2285.2,2.3665]
[1725740682084,8.74755,2286.4,2285.7,8.74975]
[1725740682285,4.37408,2286.2,2285.7,4.37486]
[1725740682470,4.37438,2286.1,2285.5,8.75054]
[1725740682801,4.37438,2286.1,2285.5,4.37525]
[1725740683002,0.874846,2286.0,2285.5,4.37525]
[1725740683971,0.874846,2286.0,2285.6,4.37519]
[1725740686068,4.37408,2286.2,2285.6,4.37519]
[1725740686069,8.74833,2286.2,2285.6,4.37519]
[1725740686394,4.37438,2286.1,2285.5,4.37525]
[1725740686761,4.37438,2286.1,2285.5,8.75055]
[1725740686959,9.70600995,2286.2,2285.7,4.37496]
[1725740687164,7.43,2286.4,2285.9,4.37463]
[1725740687365,1.043,2286.3,2286.1,4.37425]
[1725740687993,1.043,2286.3,2286.1,4.37413]
[1725740688389,1.043,2286.3,2286.2,4.37407]
[1725740688706,3.0,2286.5,2286.2,4.37407]
[1725740688707,3.0,2286.5,2286.3,4.37373]
[1725740688910,5.33192995,2286.8,2286.4,4.37357]
[1725740689408,5.33192995,2286.8,2286.3,4.37373]
[1725740689409,5.8235633,2286.8,2286.3,4.37373]
[1725740689705,10.1964833,2286.8,2286.3,4.37373]
[1725740690070,4.37312,2286.7,2286.3,4.37373]
[1725740690365,1.45696033,2286.6,2286.2,4.37401]
[1725740691028,1.94859368,2286.6,2286.2,4.37401]
[1725740692126,9.70553995,2286.5,2285.9,4.37447]
[1725740692988,9.70553995,2286.5,2286.0,4.37432]
[1725740694029,3.99835347,2286.4,2286.0,4.37432]
[1725740694331,5.46775619,2286.4,2286.0,4.37432]
[1725740694692,5.46775619,2286.4,2285.9,8.74901]
[1725740695722,5.46775619,2286.4,2285.9,4.37447]
[1725740695884,5.46775619,2286.4,2286.0,4.37443]
[1725740698424,5.46775619,2286.4,2286.1,4.37424]
[1725740700927,7.43,2286.8,2286.0,0.08748124]
[1725740701126,7.43,2286.8,2286.7,4.37311]
[1725740701338,22.52977984,2287.2,2286.8,8.74563]
[1725740701339,1.67914637,2287.1,2286.8,8.74563]
[1725740701491,3.99835347,2287.2,2286.8,4.37281]
[1725740701692,0.40937431,2287.1,2286.8,8.74559]
[1725740701889,2.4322,2287.3,2287.1,4.37234]
[1725740702126,0.40938684,2287.2,2286.9,8.74521]
[1725740702333,4.98457347,2287.3,2287.0,4.37248]
[1725740702539,3.99835347,2287.3,2287.0,4.37248]
[1725740703139,3.99835347,2287.3,2286.9,4.37254]
[1725740703333,3.99835347,2287.3,2286.8,4.37287]
[1725740703334,3.99835347,2287.1,2286.8,4.37287]
[1725740703630,3.99835347,2287.1,2286.9,4.37269]
[1725740705406,4.48998682,2287.3,2286.9,4.37269]
[1725740705597,1.94918021,2287.2,2286.9,4.37269]
[1725740705804,0.40884674,2287.1,2286.9,4.37269]
[1725740706035,0.40884674,2287.1,2286.9,8.74538]
[1725740706738,0.40884674,2287.1,2286.9,4.37269]
[1725740706956,0.40884674,2287.1,2287.0,4.37254]
[1725740707238,1.06301788,2287.1,2287.0,4.37254]
[1725740707632,0.40884674,2287.1,2287.0,4.37254]
[1725740707828,1.06300225,2287.1,2287.0,4.37254]
[1725740708006,0.40884674,2287.1,2287.0,4.37254]
[1725740708207,1.06300778,2287.1,2287.0,4.37254]
[1725740708407,1.06301799,2287.1,2287.0,4.37254]
[1725740709328,1.06301799,2287.1,2286.9,4.37269]
[1725740709638,0.88617868,2287.2,2286.9,4.37269]
[1725740709639,1.06301799,2287.0,2286.9,4.37269]
[1725740711144,1.33710934,2287.0,2286.9,4.37269]
[1725740711445,1.06301799,2287.0,2286.9,4.37273]
[1725740711983,1.06301799,2287.0,2286.9,8.74546]
[1725740712438,1.33710214,2287.0,2286.9,8.74546]
[1725740712961,0.40885307,2287.0,2286.9,16.675196]
[1725740713257,0.40885307,2287.0,2286.9,19.675196]
[1725740713943,0.90996934,2287.5,2287.4,8.74354]
[1725740714263,2.24721385,2287.5,2287.4,8.74354]
[1725740714605,8.79865281,2287.6,2287.5,4.37158]
[1725740715038,10.13591141,2287.6,2287.5,4.37158]
[1725740715346,10.13591141,2287.6,2287.5,8.74316]
[1725740715644,10.68673164,2287.6,2287.5,4.37158]
[1725740715840,19.41277667,2287.6,2287.1,4.37221]
[1725740716039,19.41277667,2287.6,2287.2,4.37215]
[1725740716040,0.90931941,2287.3,2287.2,4.37215]
[1725740716346,2.52338549,2287.3,2287.2,4.37215]
[1725740717778,1.46013964,2287.3,2287.2,4.37215]
[1725740718081,2.52348291,2287.3,2287.2,4.37215]
[1725740719178,1.86911782,2287.3,2287.2,4.37215]
[1725740719891,0.40897818,2287.3,2287.2,8.7443]
[1725740721170,0.90931941,2287.4,2287.3,4.37196]
[1725740721344,1.46013964,2287.4,2287.3,4.37196]
[1725740721681,0.95927921,2287.4,2287.3,4.37196]
[1725740721989,1.86859862,2287.4,2287.3,8.74392]
[1725740722442,0.95927921,2287.4,2287.3,8.74392]
[1725740723066,1.86859862,2287.4,2287.3,8.74392]
[1725740723273,1.86859862,2287.4,2287.3,4.37196]
[1725740724059,1.86859862,2287.4,2287.2,4.37212]
[1725740724060,3.48189992,2287.4,2287.2,4.37212]
[1725740724402,1.91479934,2287.3,2286.9,4.37259]
[1725740724627,0.90724804,2287.1,2286.9,4.37259]
[1725740724909,0.40843478,2287.0,2286.9,4.37259]
[1725740725900,0.40843478,2287.0,2286.9,8.74532]
[1725740726296,0.90724804,2287.2,2287.0,4.37254]
[1725740726577,1.31531227,2287.1,2287.0,4.37254]
[1725740727787,0.90724804,2287.1,2287.0,8.74508]
[1725740727988,0.40815142,2287.1,2287.0,8.74508]
[1725740728196,1.45806827,2287.2,2287.0,4.37254]
[1725740728388,0.95899267,2287.1,2287.0,4.37254]
[1725740728584,1.86624071,2287.1,2286.9,4.37272]
[1725740728791,1.45806827,2287.1,2286.9,4.37263]
[1725740729078,1.45806827,2287.1,2287.0,4.37254]
[1725740729280,1.86624054,2287.1,2287.0,4.37254]
[1725740730190,1.31542031,2287.1,2287.0,4.37254]
[1725740730507,0.40817227,2287.1,2287.0,8.74508]
[1725740731072,0.40817227,2287.1,2287.0,4.37254]
[1725740731073,0.4083616,2287.1,2287.0,4.37254]
[1725740731385,1.86642987,2287.1,2287.0,4.37254]
[1725740731585,1.86739152,2287.1,2287.0,4.37254]
[1725740732286,3.96512171,2287.1,2286.7,4.37302]
[1725740732623,0.90813838,2286.8,2286.7,8.74604]
[1725740732820,1.31649998,2286.8,2286.7,4.37302]
[1725740734327,1.31649998,2286.8,2286.7,8.74613]
[1725740734486,1.31650759,2286.8,2286.7,8.74613]
[1725740737596,1.31650759,2286.8,2286.7,13.11924]
[1725740737798,1.31650759,2286.8,2286.7,14.656414]
[1725740738059,0.90813838,2286.9,2286.8,8.74584]
[1725740738354,1.3166052,2286.9,2286.8,8.74584]
[1725740738514,2.42288581,2286.9,2286.8,8.74584]
[1725740738901,0.40846682,2286.9,2286.8,13.11876]
[1725740739146,1.3182396,2286.9,2286.8,14.8096034]
[1725740739315,0.40846682,2286.9,2286.8,14.8096034]
[1725740740437,1.86905983,2286.9,2286.8,10.4366834]
[1725740740623,1.61289043,2286.9,2286.8,8.74584]
[1725740741139,2.5232245,2286.9,2286.8,8.74584]
[1725740741355,1.4611543,2286.9,2286.8,8.74584]
[1725740741635,2.97383271,2286.9,2286.8,8.74584]
[1725740743761,2.98005919,2286.9,2286.8,8.74584]
[1725740743943,2.42923896,2286.9,2286.8,8.74584]
[1725740744252,2.70330457,2286.9,2286.8,8.74584]
[1725740744556,5.07257541,2286.9,2286.8,8.74584]
[1725740744920,3.73636939,2286.9,2286.8,8.74584]
[1725740745117,6.08031892,2286.9,2286.8,8.74584]
[1725740745620,3.80448589,2286.9,2286.8,8.74584]
[1725740747719,3.25366566,2286.9,2286.8,8.74584]
[1725740748351,3.25372441,2286.9,2286.8,8.74584]
[1725740749927,3.25361507,2286.9,2286.8,8.74584]
[1725740751872,1.91773057,2286.9,2286.8,8.74584]
[1725740752087,3.25360499,2286.9,2286.8,8.74584]
[1725740755382,1.91773057,2286.9,2286.8,8.74584]
[1725740755550,3.25365422,2286.9,2286.8,8.74584]
[1725740758889,3.25355192,2286.9,2286.8,8.74584]
[1725740760087,1.31498817,2286.9,2286.8,10.283004]
[1725740760291,3.14112543,2286.9,2286.8,17.035124]
[1725740760447,3.14112543,2286.9,2286.8,20.035124]
[1725740760648,5.07040549,2286.9,2286.8,20.035124]
[1725740761286,3.75541732,2286.9,2286.8,20.035124]
[1725740761482,4.68289773,2286.9,2286.8,20.035124]
[1725740761689,0.92748041,2286.9,2286.8,20.035124]
[1725740761876,2.29751139,2286.9,2286.8,20.035124]
[1725740762273,0.92748041,2286.9,2286.8,20.035124]
[1725740762470,2.29741801,2286.9,2286.8,20.035124]
[1725740763756,1.3699376,2286.9,2286.8,20.035124]
[1725740763960,2.29749093,2286.9,2286.8,20.035124]
[1725740764403,2.29749518,2286.9,2286.8,20.035124]
[1725740765561,2.75369484,2286.9,2286.8,20.035124]
[1725740767520,1.82613726,2286.9,2286.8,20.035124]
[1725740767721,2.75370776,2286.9,2286.8,20.035124]
[1725740770623,2.75370776,2286.9,2286.8,11.74584]
[1725740770837,3.21096814,2286.9,2286.8,4.37292]
[1725740771113,3.21096814,2286.9,2286.7,4.37309]
[1725740771114,0.9275705,2286.9,2286.7,4.37309]
[1725740771421,2.74007716,2287.0,2286.4,4.37354]
[1725740771422,2.4631,2286.7,2286.4,4.37354]
[1725740771723,3.66699993,2286.6,2286.4,4.37354]
[1725740771881,0.9275705,2286.5,2286.4,4.37354]
[1725740773411,0.9275705,2286.5,2286.4,8.74722]
[1725740775321,3.20928396,2286.5,2286.4,8.74722]
[1725740777285,2.28171346,2286.5,2286.4,8.74722]
[1725740777488,2.5558361,2286.5,2286.4,8.74722]
[1725740777682,3.2094131,2286.5,2286.4,8.74722]
[1725740778134,3.2094131,2286.5,2286.4,14.433028]
[1725740778315,2.75245666,2286.5,2286.4,14.433028]
[1725740780728,1.82475702,2286.5,2286.4,14.433028]
[1725740780937,2.7524024,2286.5,2286.4,14.433028]
[1725740782669,2.7524024,2286.5,2286.4,21.806708]
[1725740782670,1.5657036,2286.5,2286.4,21.806708]
[1725740782966,1.5657036,2286.5,2286.4,24.236608]
[1725740783257,1.82475702,2286.7,2286.6,13.1199]
[1725740783258,1.36821225,2286.7,2286.6,13.1199]
[1725740783418,2.29588224,2286.7,2286.6,15.5434468]
[1725740784064,1.36821225,2286.7,2286.6,15.5434468]
[1725740784426,2.0218114,2286.7,2286.6,15.5434468]
[1725740785621,2.71e-06,2286.7,2286.6,22.3466468]
[1725740785821,2.74e-06,2286.8,2286.7,17.49244]
[1725740786052,9.25475702,2287.1,2287.0,13.11762]
[1725740786248,9.52878978,2287.1,2287.0,13.11762]
[1725740787723,7.70403276,2287.1,2287.0,13.11762]
[1725740787923,8.79829608,2287.1,2287.0,13.11762]
[1725740788922,1.36829608,2287.1,2287.0,13.11762]
[1725740789127,1.36829608,2287.1,2287.0,14.866654]
[1725740789568,1.36829608,2287.1,2287.0,21.669094]
[1725740789863,1.36829608,2287.2,2287.1,13.11702]
[1725740792072,1.82475702,2287.4,2287.3,8.74392]
[1725740792364,2.09877251,2287.4,2287.3,8.74392]
[1725740793628,2.09877251,2287.4,2287.3,14.427487]
[1725740793972,2.63136304,2287.4,2287.3,14.427487]
[1725740794130,2.63136304,2287.4,2287.3,13.11588]
[1725740794333,2.63135092,2287.4,2287.3,13.11588]
[1725740795675,1.82475702,2287.5,2287.4,8.74354]
[1725740795831,2.75239172,2287.5,2287.4,8.74354]
[1725740797172,2.02066944,2287.5,2287.4,8.74354]
[1725740797373,0.65362751,2287.5,2287.4,8.74354]
[1725740797578,0.92763212,2287.5,2287.4,8.74354]
[1725740797882,1.82475702,2287.6,2287.5,8.74316]
[1725740798337,2.75240883,2287.6,2287.5,8.74316]
[1725740798732,2.75240883,2287.6,2287.5,13.11474]
[1725740799074,0.92765181,2287.6,2287.5,13.11474]
[1725740799233,2.02022486,2287.6,2287.5,13.11474]
[1725740799635,2.02022486,2287.6,2287.5,14.426214]
[1725740801234,1.82475702,2287.7,2287.6,8.74278]
[1725740801235,1.36657777,2287.7,2287.6,8.74278]
[1725740801433,2.0202429,2287.7,2287.6,13.11417]
[1725740801634,0.91080033,2287.7,2287.6,13.11417]
[1725740801877,0.91082528,2287.8,2287.6,6.72949]
[1725740802047,0.91082528,2288.0,2287.8,8.74202]
[1725740802243,0.91082528,2288.1,2287.9,4.37082]
[1725740802459,0.91082528,2288.1,2287.8,4.37101]
[1725740802460,0.91082528,2288.1,2288.0,13.11186]
[1725740802945,1.18637904,2288.1,2288.0,13.11186]
[1725740803145,2.09695237,2288.1,2288.0,13.11186]
[1725740803380,1.44316386,2288.1,2288.0,13.11186]
[1725740803791,1.44316386,2288.1,2288.0,8.74124]
[1725740803974,2.99564759,2288.1,2288.0,8.74124]
[1725740804147,5.47240708,2288.1,2288.0,4.37062]
[1725740804687,5.47240708,2288.1,2287.9,4.37082]
[1725740804688,8.0644786,2288.1,2287.9,4.37082]
[1725740804886,2.35187605,2288.0,2287.9,4.37082]
[1725740805103,2.79458066,2288.0,2287.9,4.37082]
[1725740805394,3.72207574,2288.0,2287.9,4.37082]
[1725740805561,4.10162037,2288.0,2287.9,4.37082]